fUST/lending_fUST_20240213
["ID","MTS","AMOUNT","RATE_DAILY","PERIOD"]
[313869891,1707760247012,-690.35045091,0.00020822,2]
[313869893,1707760247021,-690.35045091,0.00020822,2]
[313869895,1707760247031,-500.0,0.00020822,2]
[313869897,1707760247040,-500.0,0.00020822,2]
[313869899,1707760247049,-500.0,0.00020822,2]
[313869901,1707760247059,-500.0,0.00020822,2]
[313869903,1707760247068,-500.0,0.00020822,2]
[313869905,1707760247080,-500.0,0.00020822,2]
[313869907,1707760247089,-500.0,0.00020822,2]
[313869909,1707760247100,-500.0,0.00020822,2]
[313869910,1707760247109,-500.0,0.00020822,2]
[313869913,1707760247119,-500.0,0.00020822,2]
[313869914,1707760247129,-500.0,0.00020822,2]
[313869916,1707760247138,-500.0,0.00020822,2]
[313869919,1707760247148,-500.0,0.00020822,2]
[313869920,1707760247158,-500.0,0.00020822,2]
[313869922,1707760247168,-500.0,0.00020822,2]
[313869924,1707760247177,-500.0,0.00020822,2]
[313869926,1707760247186,-500.0,0.00020822,2]
[313869928,1707760247196,-500.0,0.00020822,2]
[313869930,1707760247205,-500.0,0.00020822,2]
[313869933,1707760247214,-500.0,0.00020822,2]
[313869934,1707760247224,-500.0,0.00020822,2]
[313869937,1707760247233,-500.0,0.00020822,2]
[313869939,1707760247242,-500.0,0.00020822,2]
[313869940,1707760247252,-500.0,0.00020822,2]
[313869942,1707760247261,-500.0,0.00020822,2]
[313869944,1707760247270,-500.0,0.00020822,2]
[313869946,1707760247279,-500.0,0.00020822,2]
[313869948,1707760247288,-500.0,0.00020822,2]
[313869950,1707760247297,-500.0,0.00020822,2]
[313869953,1707760247306,-500.0,0.00020822,2]
[313869954,1707760247315,-500.0,0.00020822,2]
[313869957,1707760247328,-500.0,0.00020822,2]
[313869959,1707760247337,-640.8795351,0.00020822,2]
[313869961,1707760247347,-500.0,0.00020822,2]
[313869963,1707760247356,-500.0,0.00020822,2]
[313869964,1707760247366,-500.0,0.00020822,2]
[313869965,1707760247376,-500.0,0.00020822,2]
[313869966,1707760247385,-359.53070922,0.00020822,2]
[313869967,1707760247395,-500.0,0.00020822,2]
[313869968,1707760247405,-500.0,0.00020822,2]
[313869969,1707760247414,-500.0,0.00020822,2]
[313869970,1707760247424,-500.0,0.00020822,2]
[313869971,1707760247433,-500.0,0.00020822,2]
[313869972,1707760247442,-500.0,0.00020822,2]
[313869973,1707760247452,-500.0,0.00020822,2]
[313869974,1707760247461,-500.0,0.00020822,2]
[313869975,1707760247470,-500.0,0.00020822,2]
[313869976,1707760247479,-500.0,0.00020822,2]
[313869977,1707760247488,-683.4469464,0.00020822,2]
[313869978,1707760247497,-683.4469464,0.00020822,2]
[313869979,1707760247506,-683.4469464,0.00020822,2]
[313869980,1707760247515,-594.7821759,0.00020822,2]
[313871172,1707760259767,2066.49041517,0.00015922,2]
[313871177,1707760259796,8263.20008973,0.00015922,2]
[313872649,1707760275743,6018.9740526,0.00015922,2]
[313874393,1707760410910,358.52111586,0.00015922,2]
[313874394,1707760411560,1097.32461331,0.00015922,2]
[313874395,1707760415462,622.79980352,0.00015922,2]
[313874396,1707760416758,3639.18032498,0.00015922,2]
[313874397,1707760416787,6329.31044022,0.00015922,2]
[313874398,1707760417786,155.01550155,0.00015922,2]
[313874399,1707760425260,154.92253873,0.00015922,2]
[313874400,1707760426448,235.63677143,0.00015922,2]
[313874401,1707760431388,4418.69116907,0.0001631,2]
[313874402,1707760432890,10329.6905049,0.00015922,2]
[313874403,1707760445158,216.72037383,0.00015922,2]
[313874409,1707760452755,10323.46437368,0.00015922,2]
[313874415,1707760465546,1097.32461331,0.00015922,2]
[313874416,1707760471259,8878.39291309,0.00015922,2]
[313874425,1707760516890,154.92253873,0.00015922,2]
[313874429,1707760536878,155.48902003,0.00015922,2]
[313874480,1707760762833,202.448286,0.00027397,120]
[313874535,1707760856382,5000.0,0.0001909,9]
[313874547,1707760868664,5000.0,0.0001909,9]
[313874548,1707760880965,5000.0,0.0001909,9]
[313874549,1707760892667,4121.85853995,0.0001909,9]
[313874585,1707761330300,2720.58919756,0.00017803,5]
[313874667,1707761438581,-154.92253873,0.000178,3]
[313874670,1707761438591,-324.00807231,0.000178,2]
[313874672,1707761438600,-1175.02241948,0.00017801,2]
[313874677,1707761438647,-1649.53277877,0.00017801,2]
[313874680,1707761438657,-1291.59702042,0.00017802,2]
[313874682,1707761438667,-1097.61635479,0.00017803,2]
[313874683,1707761438676,-271.63306438,0.00017803,2]
[313874686,1707761438686,-154.92253873,0.00017803,2]
[313874687,1707761438697,-622.98169386,0.00017803,2]
[313874689,1707761438706,-684.648274,0.00017803,2]
[313874693,1707761438715,-154.92253873,0.00017803,2]
[313874696,1707761438725,-344.29963727,0.00017803,2]
[313874698,1707761438735,-154.92253873,0.00017803,2]
[313874701,1707761438744,-154.92253873,0.00017803,2]
[313874703,1707761438754,-154.92253873,0.00017803,2]
[313874705,1707761438763,-18888.43983311,0.00017805,2]
[313874708,1707761438780,-3189.15266999,0.00017805,2]
[313874710,1707761438789,-2920.9137625,0.00018203,2]
[313874712,1707761438798,-608.24130434,0.00018263,2]
[313874715,1707761438810,-642.28175876,0.00018263,2]
[313874716,1707761438820,-323.146009,0.0001844,2]
[313874718,1707761438829,-34.57223224,0.00018692,2]
[313874721,1707761438841,-165.42776776,0.00018692,2]
[313874723,1707761438850,-1638.42454141,0.000189,2]
[313874725,1707761438860,-358.08667409,0.0001909,2]
[313874727,1707761438868,-168.422778,0.00019178,2]
[313874729,1707761438877,-166.666666,0.00019178,2]
[313874731,1707761438887,-186.06886583,0.00019335,2]
[313874733,1707761438896,-1397.30911848,0.00019435,3]
[313874735,1707761438905,-166.666666,0.00019739,2]
[313874737,1707761438914,-166.666666,0.000203,2]
[313874739,1707761438923,-280.0,0.00020561,2]
[313874741,1707761438931,-200.646612,0.00020721,4]
[313874743,1707761438940,-2720.58919756,0.0002082,5]
[313874745,1707761438949,-1964.19632335,0.00020821,2]
[313874747,1707761438961,-758.24722238,0.00020821,2]
[313874749,1707761438971,-596.33966078,0.00020821,2]
[313874751,1707761438983,-122.78711934,0.00020821,2]
[313874753,1707761438992,-166.666666,0.00020861,2]
[313874755,1707761439001,-5788.50093191,0.00021,2]
[313874758,1707761439017,-2599.96673227,0.00021,2]
[313874760,1707761439025,-189.65003315,0.00021397,2]
[313874762,1707761439035,-166.666666,0.00021422,2]
[313874764,1707761439044,-13237.8,0.00021487,3]
[313874766,1707761439053,-2618.21000392,0.00021495,2]
[313874768,1707761439062,-417.10278735,0.00021497,2]
[313874770,1707761439072,-375.53981631,0.00021497,2]
[313874772,1707761439081,-500.0,0.00021497,2]
[313874774,1707761439090,-447.72346792,0.00021497,2]
[313874776,1707761439099,-155.26770188,0.00021497,2]
[313874778,1707761439109,-500.0,0.00021497,2]
[313874780,1707761439118,-280.15982693,0.00021497,2]
[313874782,1707761439127,-500.0,0.00021497,2]
[313874784,1707761439136,-500.0,0.00021497,2]
[313874786,1707761439145,-500.0,0.00021497,2]
[313874787,1707761439154,-383.94283672,0.00021497,2]
[313874789,1707761439165,-500.0,0.00021497,2]
[313874791,1707761439174,-500.0,0.00021497,2]
[313874792,1707761439185,-500.0,0.00021497,2]
[313874793,1707761439194,-500.0,0.00021497,2]
[313874794,1707761439203,-500.0,0.00021497,2]
[313874795,1707761439213,-500.0,0.00021497,2]
[313874796,1707761439222,-500.0,0.00021497,2]
[313874797,1707761439231,-500.0,0.00021497,2]
[313874798,1707761439240,-500.0,0.00021497,2]
[313874799,1707761439251,-500.0,0.00021497,2]
[313874800,1707761439260,-500.0,0.00021497,2]
[313874801,1707761439269,-314.08795351,0.00021497,2]
[313874802,1707761439278,-500.0,0.00021497,2]
[313874803,1707761439288,-500.0,0.00021497,2]
[313874805,1707761439296,-500.0,0.00021497,2]
[313874806,1707761439306,-58.53182024,0.00021497,2]
[313874813,1707761441790,-11031.5,0.00021488,3]
[313874814,1707761441800,-441.46817976,0.00021497,2]
[313874815,1707761441809,-500.0,0.00021497,2]
[313874816,1707761441820,-205.95307092,0.00021497,2]
[313874817,1707761441830,-500.0,0.00021497,2]
[313874818,1707761441839,-500.0,0.00021497,2]
[313874819,1707761441849,-500.0,0.00021497,2]
[313874820,1707761441859,-500.0,0.00021497,2]
[313874821,1707761441868,-495.3138978,0.00021497,2]
[313874822,1707761441877,-500.0,0.00021497,2]
[313874823,1707761441887,-500.0,0.00021497,2]
[313874824,1707761441896,-500.0,0.00021497,2]
[313874825,1707761441905,-500.0,0.00021497,2]
[313874826,1707761441914,-500.0,0.00021497,2]
[313874827,1707761441923,-500.0,0.00021497,2]
[313874828,1707761441932,-500.0,0.00021497,2]
[313874829,1707761441941,-500.0,0.00021497,2]
[313874830,1707761441950,-500.0,0.00021497,2]
[313874831,1707761441960,-500.0,0.00021497,2]
[313874832,1707761441969,-500.0,0.00021497,2]
[313874833,1707761441978,-500.0,0.00021497,2]
[313874834,1707761441987,-500.0,0.00021497,2]
[313874835,1707761441996,-500.0,0.00021497,2]
[313874836,1707761442005,-500.0,0.00021497,2]
[313874837,1707761442014,-500.0,0.00021497,2]
[313874838,1707761442023,-500.0,0.00021497,2]
[313874839,1707761442033,-650.0,0.00021497,2]
[313874840,1707761442042,-500.0,0.00021497,2]
[313874841,1707761442051,-500.0,0.00021497,2]
[313874842,1707761442060,-500.0,0.00021497,2]
[313874843,1707761442071,-500.0,0.00021497,2]
[313874844,1707761442080,-500.0,0.00021497,2]
[313874845,1707761442089,-500.0,0.00021497,2]
[313874846,1707761442099,-162.28596255,0.00021497,2]
[313874847,1707761442108,-500.0,0.00021497,2]
[313874848,1707761442118,-163.59724394,0.00021497,2]
[313874849,1707761442130,-339.11019106,0.00021497,2]
[313874850,1707761442139,-189.65003315,0.00021498,2]
[313874851,1707761442148,-719.41160353,0.00021498,2]
[313874865,1707761443105,342.714599,0.00016903,2]
[313875154,1707761446826,-5212.449332,0.00021498,2]
[313875187,1707761709323,2720.58919756,0.00017802,5]
[313875255,1707762631825,-154.93802479,0.00017757,3]
[313875257,1707762631835,-781.27197536,0.00017757,2]
[313875420,1707762637783,-510.32504506,0.00017757,2]
[313875422,1707762637793,-1844.43072509,0.00017758,2]
[313875424,1707762637805,-23055.56927491,0.00017758,2]
[313875426,1707762637814,-344.29963727,0.00017802,2]
[313875428,1707762637823,-271.63306438,0.00017802,2]
[313875430,1707762637832,-622.98169386,0.00017802,2]
[313875432,1707762637841,-154.92253873,0.00017802,2]
[313875434,1707762637851,-684.648274,0.00017802,2]
[313875436,1707762637861,-154.92253873,0.00017802,2]
[313875437,1707762637871,-155.24631657,0.00017803,2]
[313875438,1707762637881,-173.66192496,0.00017803,2]
[313875440,1707762637890,-1097.03287183,0.00017803,2]
[313875442,1707762637900,-200.0,0.00018644,2]
[313875444,1707762637909,-13015.298819,0.00018787,2]
[313875445,1707762637919,-598.514732,0.0001884,2]
[313875446,1707762637928,-250.0,0.00018917,2]
[313875447,1707762637938,-168.980603,0.00019178,2]
[313875448,1707762637947,-166.666666,0.00019178,2]
[313875449,1707762637957,-981.1601613,0.00019346,2]
[313875450,1707762637966,-1578.88472479,0.00019397,2]
[313875451,1707762637975,-166.666666,0.00019627,2]
[313875452,1707762637984,-1200.0,0.0002,2]
[313875453,1707762637994,-166.666666,0.00020076,2]
[313875454,1707762638003,-280.0,0.00020509,2]
[313875455,1707762638013,-166.666666,0.00020524,2]
[313875456,1707762638022,-166.666666,0.00020973,2]
[313875457,1707762638031,-1524.75282043,0.00021281,2]
[313875458,1707762638040,-323.12614741,0.00021398,2]
[313875459,1707762638049,-640.60015682,0.00021398,2]
[313875460,1707762638058,-166.666666,0.00021422,2]
[313875461,1707762638067,-323.64745609,0.00021496,2]
[313875462,1707762638076,-736.43168818,0.00021496,2]
[313875463,1707762638086,-408.12822446,0.00021496,2]
[313875464,1707762638099,-1271.6264807,0.00021496,2]
[313875465,1707762638111,-3675.16567355,0.00021496,2]
[313875466,1707762638120,-2390.07853912,0.00021496,5]
[313875467,1707762638130,-364.63519008,0.00021497,2]
[313875468,1707762638139,-3518.46658089,0.00021498,2]
[313875469,1707762638147,-1173.29201621,0.00021498,2]
[313875470,1707762638158,-919.23332612,0.00021498,2]
[313875471,1707762638167,-300.0,0.00021498,2]
[313875472,1707762638176,-4433.31,0.00021512,3]
[313875473,1707762638186,-1859.09579688,0.00021521,2]
[313875474,1707762638194,-201.56532817,0.00021522,2]
[313875475,1707762638203,-245.10589677,0.00021522,2]
[313875476,1707762638212,-500.0,0.00021522,2]
[313875477,1707762638221,-542.96114131,0.00021522,2]
[313875478,1707762638229,-500.0,0.00021522,2]
[313875479,1707762638238,-500.0,0.00021522,2]
[313875480,1707762638247,-264.53138978,0.00021522,2]
[313875481,1707762638256,-12326.65798993,0.00021523,2]
[313875501,1707762644216,-8454.03,0.00021513,3]
[313875502,1707762644226,-9738.8582839,0.00021523,2]
[313875505,1707762644238,-24154.81564241,0.00021523,2]
[313875507,1707762644249,-3779.66808376,0.00021523,2]
[313875508,1707762644259,-50000.0,0.00021523,2]
[313875509,1707762644269,-297.70990828,0.00021596,2]
[313875510,1707762644278,-565.64808241,0.00021596,2]
[313875511,1707762644287,-535.50901674,0.00021596,2]
[313875512,1707762644297,-1945.27553072,0.00021596,2]
[313875513,1707762644306,-156.87646366,0.00021596,2]
[313875514,1707762644315,-196.00038664,0.00021596,2]
[313875515,1707762644325,-821.43357407,0.00021596,2]
[313875517,1707762644334,-232.15963997,0.00021596,2]
[313875518,1707762644343,-681.44085564,0.00021596,2]
[313875520,1707762644352,-1202.57082301,0.00021596,2]
[313875522,1707762644361,-157.04477798,0.00021596,2]
[313875524,1707762644370,-169.50613981,0.00021596,2]
[313875526,1707762644379,-324.78353785,0.00021596,2]
[313875529,1707762644388,-6304.53229004,0.00021596,2]
[313875532,1707762644397,-155.15521974,0.00021597,2]
[313875534,1707762644406,-237.23888705,0.00021597,2]
[313875536,1707762644415,-273.59939744,0.00021597,2]
[313875538,1707762644423,-11684.43940829,0.00021598,2]
[313875572,1707762645201,-456.64440001,0.00021598,2]
[313875574,1707762645212,-4660.25368921,0.00021598,2]
[313875576,1707762645224,-588.21573289,0.00021598,2]
[313875584,1707762645787,-389.81045533,0.00021598,2]
[313875585,1707762645800,-717.2681638,0.00021598,2]
[313875586,1707762696636,5000.0,0.0001909,9]
[313875588,1707763466554,299.257366,0.00016773,2]
[313875589,1707763534956,154.90705577,0.00016773,2]
[313875590,1707763535481,344.29963727,0.00016773,2]
[313875591,1707763537304,154.90705577,0.00016773,2]
[313875592,1707763550956,278.23770505,0.00016773,2]
[313875593,1707763551311,227.78049183,0.00016773,2]
[313875594,1707763551475,344.29963727,0.00016773,2]
[313875595,1707763552065,404.01569347,0.00016773,2]
[313875596,1707763552095,218.96600039,0.00016773,2]
[313875597,1707763566070,622.2541325,0.00016773,2]
[313875598,1707763573499,343.3387153,0.00016773,2]
[313875599,1707763608070,-154.90705577,0.00017659,3]
[313875600,1707763608093,-845.09294423,0.0001766,3]
[313875601,1707763629197,-500.0,0.00020849,5]
[313875602,1707763650050,-42.94552651,0.00020849,5]
[313875603,1707763650074,-457.05447349,0.00021495,5]
[313875604,1707763665827,-200.0,0.00021495,5]
[313875605,1707763682180,-860.0,0.00021495,5]
[313875671,1707763831868,-1019.11530917,0.00017691,2]
[313875673,1707763831877,-154.90705577,0.00017692,3]
[313875675,1707763831888,-336.10489732,0.00017696,3]
[313875710,1707763837996,-419.90951034,0.00017696,3]
[313875808,1707763841355,-276.81703123,0.00017696,3]
[313875809,1707763841369,-905.64622544,0.00017697,2]
[313875810,1707763841379,-164.70328022,0.00017701,2]
[313875811,1707763841390,-628.39737856,0.00017802,2]
[313875812,1707763841400,-4426.02834097,0.00018512,2]
[313875813,1707763841413,-1000.0,0.00018512,2]
[313875814,1707763841425,-12082.96089067,0.00018512,2]
[313875880,1707763846690,-1637.53249506,0.00018512,2]
[313875881,1707763846813,-262.0,0.00018512,2]
[313875882,1707763846826,-3064.26230956,0.00018512,2]
[313875886,1707764031816,325.70374195,0.0001631,2]
[313875887,1707764048145,6123.59142979,0.000125,2]
[313875889,1707764061853,269.88873061,0.0001,2]
[313875899,1707764386077,-154.90705577,0.00017319,2]
[313875900,1707764386102,-845.09294423,0.00017319,2]
[313875902,1707764693068,17096.25724946,0.00017109,2]
[313875903,1707764693105,6047.58238934,0.00017109,2]
[313875905,1707764966037,9113.41162922,0.00017087,2]
[313875961,1707765032101,-154.92253873,0.00017186,3]
[313875964,1707765032111,-261.26593856,0.0001768,2]
[313875967,1707765032120,-299.257366,0.00017681,2]
[313875969,1707765032130,-1859.09579688,0.0001851,2]
[313875972,1707765032140,-155.28046037,0.0001851,2]
[313875975,1707765032150,-1009.25364165,0.0001851,2]
[313875977,1707765032159,-156.0183118,0.0001851,2]
[313875980,1707765032170,-155.02015262,0.00018511,2]
[313875983,1707765032179,-206.70820157,0.00018512,2]
[313875986,1707765032192,-65884.50432978,0.00018512,2]
[313876031,1707765041388,-714.80250321,0.00018511,2]
[313876032,1707765041398,-38638.79749739,0.00018512,2]
[313876033,1707765041497,-5451.6775756,0.00018512,2]
[313876034,1707765041508,-346.12261377,0.00018512,2]
[313876035,1707765041519,-320.98239,0.00018512,2]
[313876043,1707765044487,-3848.46518368,0.00018512,2]
[313876045,1707765044500,-56571.77719758,0.00018512,2]
[313876047,1707765044511,-300.53193216,0.000188,2]
[313876050,1707765044522,-1330.28344755,0.000189,2]
[313876052,1707765044532,-168.980603,0.00019178,2]
[313876054,1707765044541,-169.583743,0.00019178,2]
[313876056,1707765044551,-200.0,0.00019434,2]
[313876058,1707765044561,-300.53193215,0.00019474,2]
[313876060,1707765044570,-607.74826781,0.000195,2]
[313876062,1707765044580,-1200.0,0.0002,2]
[313876064,1707765044589,-681.44085564,0.0002,2]
[313876066,1707765044600,-9732.53702333,0.0002,2]
[313876069,1707765044609,-300.53193215,0.00020149,2]
[313876072,1707765044619,-1724.62329245,0.00020747,4]
[313876075,1707765044628,-500.0,0.00020822,2]
[313876077,1707765044638,-500.0,0.00020822,2]
[313876079,1707765044647,-500.0,0.00020822,2]
[313876080,1707765044657,-500.0,0.00020822,2]
[313876082,1707765044667,-500.0,0.00020822,2]
[313876084,1707765044676,-500.0,0.00020822,2]
[313876086,1707765044685,-500.0,0.00020822,2]
[313876088,1707765044695,-500.0,0.00020822,2]
[313876089,1707765044704,-500.0,0.00020822,2]
[313876091,1707765044714,-500.0,0.00020822,2]
[313876093,1707765044724,-500.0,0.00020822,2]
[313876095,1707765044733,-500.0,0.00020822,2]
[313876097,1707765044742,-623.64833707,0.00020822,2]
[313876099,1707765044752,-500.0,0.00020822,2]
[313876100,1707765044761,-500.0,0.00020822,2]
[313876102,1707765044771,-500.0,0.00020822,2]
[313876105,1707765044781,-500.0,0.00020822,2]
[313876119,1707765044899,-500.0,0.00020822,2]
[313876121,1707765044910,-500.0,0.00020822,2]
[313876122,1707765044919,-500.0,0.00020822,2]
[313876124,1707765044928,-323.5776383,0.00020822,2]
[313876127,1707765044938,-500.0,0.00020822,2]
[313876128,1707765044948,-500.0,0.00020822,2]
[313876130,1707765044959,-500.0,0.00020822,2]
[313876131,1707765044968,-500.0,0.00020822,2]
[313876132,1707765044978,-500.0,0.00020822,2]
[313876133,1707765044987,-500.0,0.00020822,2]
[313876134,1707765044996,-500.0,0.00020822,2]
[313876135,1707765045006,-500.0,0.00020822,2]
[313876136,1707765045015,-500.0,0.00020822,2]
[313876137,1707765045024,-500.0,0.00020822,2]
[313876138,1707765045033,-500.0,0.00020822,2]
[313876140,1707765045043,-500.0,0.00020822,2]
[313876141,1707765045052,-500.0,0.00020822,2]
[313876142,1707765045062,-500.0,0.00020822,2]
[313876143,1707765045071,-500.0,0.00020822,2]
[313876144,1707765045081,-500.0,0.00020822,2]
[313876145,1707765045090,-500.0,0.00020822,2]
[313876146,1707765045099,-500.0,0.00020822,2]
[313876147,1707765045109,-68.62655221,0.00020822,2]
[313876160,1707765045625,-431.37344779,0.00020822,2]
[313876163,1707765045635,-500.0,0.00020822,2]
[313876165,1707765045644,-412.13005961,0.00020822,2]
[313876515,1707765049157,-154.92253873,0.00018738,3]
[313876517,1707765049166,-87.86994039,0.00020822,2]
[313876519,1707765049176,-20.26752088,0.00020822,2]
[313876530,1707765049267,-479.73247912,0.00020822,2]
[313876532,1707765049276,-500.0,0.00020822,2]
[313876534,1707765049286,-117.18069138,0.00020822,2]
[313876955,1707765062757,622.98169386,0.00017087,2]
[313876961,1707765077516,5862.12175567,0.00017087,2]
[313876962,1707765078751,607.60657903,0.00017087,2]
[313876965,1707765109251,154.92253873,0.00017087,2]
[313876967,1707765127260,191.34719609,0.00017087,2]
[313876983,1707765253219,154.92253873,0.00017087,2]
[313876984,1707765255523,157.51497675,0.00017087,2]
[313876985,1707765271206,253.16236914,0.00017087,2]
[313877013,1707765685612,1448.1845262,0.00017087,2]
[313877014,1707765692104,344.20049745,0.00017087,2]
[313877015,1707765694572,1097.32461331,0.00017087,2]
[313877016,1707765705632,10326.57743929,0.00017087,2]
[313877017,1707765706573,1097.32461331,0.00017087,2]
[313877018,1707765706828,622.11270872,0.00017087,2]
[313877019,1707765722589,1095.85742691,0.00017087,2]
[313877020,1707765723615,963.83852681,0.00017087,2]
[313877021,1707765723645,2075.50182597,0.00017087,2]
[313877022,1707765726075,344.20049745,0.00017087,2]
[313877023,1707765743571,271.63306438,0.00017087,2]
[313877024,1707765746136,343.68505169,0.00017087,2]
[313877025,1707765755556,271.63306438,0.00017087,2]
[313877026,1707765769043,519.55,0.0001909,9]
[313877027,1707765773561,196.51236263,0.00017087,2]
[313877030,1707765998514,1646.9209136,0.0001635,2]
[313877031,1707766048566,203.3940691,0.00016443,2]
[313877032,1707766053071,159.9108223,0.00017052,2]
[313877100,1707766232311,-454.71886916,0.00017245,2]
[313877103,1707766232321,-2411.21508318,0.00017246,2]
[313877253,1707766239490,-3579.49999271,0.00017246,2]
[313877254,1707766239499,-154.92253873,0.00017246,3]
[313877255,1707766239509,-524.04456345,0.00017247,2]
[313877256,1707766239522,-679.0873968,0.00017247,2]
[313877257,1707766239531,-261.26593856,0.00017248,2]
[313877258,1707766239541,-819.64393267,0.00017264,2]
[313877259,1707766239600,-2688.98158543,0.00017264,2]
[313877260,1707766239612,-20932.1299614,0.00017264,2]
[313877261,1707766239621,-11378.875734,0.00017641,2]
[313877262,1707766239631,-200.0,0.00018127,2]
[313877263,1707766239640,-250.0,0.00018718,2]
[313877264,1707766239649,-1131.72825184,0.000189,2]
[313877265,1707766239658,-166.666667,0.00019178,2]
[313877266,1707766239668,-168.980603,0.00019178,2]
[313877267,1707766239677,-166.666667,0.00019926,2]
[313877268,1707766239687,-280.0,0.00019939,2]
[313877269,1707766239696,-152.1487591,0.0002,2]
[313877270,1707766239705,-166.666667,0.00020674,2]
[313877271,1707766239714,-2525.18138511,0.00020721,2]
[313877273,1707766239724,-262.41994744,0.0002082,7]
[313877275,1707766239733,-181.54986875,0.00020821,2]
[313877276,1707766239742,-264.83014184,0.00020821,2]
[313877277,1707766239751,-202.374893,0.00020821,2]
[313877278,1707766239760,-1297.66046519,0.00020821,2]
[313877279,1707766239769,-298.31247757,0.00020821,2]
[313877280,1707766239779,-1424.293704,0.0002084,2]
[313877281,1707766239788,-386.48996246,0.00020952,2]
[313877282,1707766239796,-815.2881777,0.00021,2]
[313877283,1707766239806,-1000.0,0.00021,21]
[313877284,1707766239815,-386.48996246,0.00021048,2]
[313877285,1707766239825,-500.0,0.00021051,2]
[313877286,1707766239834,-500.0,0.00021051,2]
[313877287,1707766239843,-500.0,0.00021051,2]
[313877288,1707766239853,-500.0,0.00021051,2]
[313877289,1707766239863,-500.0,0.00021051,2]
[313877290,1707766239872,-500.0,0.00021051,2]
[313877291,1707766239881,-500.0,0.00021051,2]
[313877292,1707766239891,-500.0,0.00021051,2]
[313877293,1707766239899,-500.0,0.00021051,2]
[313877294,1707766239908,-500.0,0.00021051,2]
[313877295,1707766239917,-500.0,0.00021051,2]
[313877296,1707766239926,-428.04903214,0.00021051,2]
[313877297,1707766239935,-500.0,0.00021051,2]
[313877298,1707766239944,-500.0,0.00021051,2]
[313877299,1707766239953,-571.32895935,0.00021051,2]
[313877300,1707766239962,-169.15820016,0.00021051,2]
[313877301,1707766239971,-500.0,0.00021051,2]
[313877302,1707766239980,-500.0,0.00021051,2]
[313877303,1707766239989,-500.0,0.00021051,2]
[313877304,1707766239998,-187.89302843,0.00021051,2]
[313877495,1707766245788,-312.10697157,0.00021051,2]
[313877497,1707766245798,-500.0,0.00021051,2]
[313877499,1707766245807,-500.0,0.00021051,2]
[313877501,1707766245815,-500.0,0.00021051,2]
[313877504,1707766245825,-500.0,0.00021051,2]
[313877507,1707766245834,-500.0,0.00021051,2]
[313877510,1707766245843,-500.0,0.00021051,2]
[313877512,1707766245852,-50000.0,0.00021052,2]
[313877515,1707766245861,-386.48996246,0.00021144,2]
[313877518,1707766245870,-386.48996246,0.0002124,2]
[313877521,1707766245879,-1107.07861913,0.00021327,2]
[313877524,1707766245887,-386.48996246,0.00021336,2]
[313877527,1707766245896,-1260.73586165,0.00021336,2]
[313877529,1707766245905,-1697.0,0.00021378,10]
[313877532,1707766245915,-24972.02,0.00021384,3]
[313877535,1707766245924,-250.0,0.00021393,2]
[313877538,1707766245933,-32783.47388107,0.00021394,2]
[313877543,1707766245951,-6175.00889169,0.00021394,2]
[313877566,1707766246068,-502.71478281,0.00021394,2]
[313877569,1707766246079,-2025.61428217,0.00021394,2]
[313877571,1707766246090,-3353.52801837,0.00021394,2]
[313877575,1707766246120,-2111.81572043,0.00021394,2]
[313877577,1707766246132,-74171.62998236,0.00021394,2]
[313877579,1707766246141,-166.666667,0.00021422,2]
[313877582,1707766246151,-11549.31520876,0.00021424,2]
[313877583,1707766246160,-1459.45902565,0.00021424,2]
[313877584,1707766246170,-821.15351128,0.00021425,2]
[313877585,1707766246179,-155.76286218,0.00021434,2]
[313877586,1707766246188,-160.18585955,0.00021434,2]